fUST/lending_fUST_20240415
["ID","MTS","AMOUNT","RATE_DAILY","PERIOD"]
[322653717,1713181841016,-158.878443,0.00033844,2]
[322653718,1713181841026,-465.39337493,0.00034,4]
[322653719,1713181841036,-3315.01424801,0.00034,2]
[322653720,1713181841046,-10549.08217762,0.00034,2]
[322653721,1713181841055,-153.0,0.0003411,2]
[322653722,1713181841064,-306.0,0.0003411,2]
[322653723,1713181841073,-153.0,0.0003411,2]
[322653724,1713181841083,-153.0,0.0003411,2]
[322653725,1713181841093,-153.0,0.0003411,2]
[322653726,1713181841108,-155.223453,0.0003411,2]
[322653727,1713181841118,-160.460837,0.0003411,2]
[322653728,1713181841129,-403.000118,0.00034247,2]
[322653729,1713181841138,-984.00405616,0.0003444,7]
[322653730,1713181841148,-2258.0,0.0003448,2]
[322653731,1713181841158,-223.385,0.00034488,2]
[322653732,1713181841169,-151.0,0.00034617,2]
[322653733,1713181841178,-2797.948285,0.00034617,2]
[322653734,1713181841188,-2797.948285,0.00034617,2]
[322653735,1713181841199,-151.0,0.00034617,2]
[322653736,1713181841208,-151.0,0.00034617,2]
[322653737,1713181841217,-151.0,0.00034617,2]
[322653738,1713181841227,-151.0,0.00034617,2]
[322653739,1713181841237,-151.0,0.00034617,2]
[322653740,1713181841247,-371.672002,0.00034617,2]
[322653741,1713181841256,-371.672002,0.00034617,2]
[322653742,1713181841266,-151.0,0.00034617,2]
[322653743,1713181841275,-426.432367,0.00034617,2]
[322653744,1713181841285,-151.0,0.00034617,2]
[322653745,1713181841295,-151.0,0.00034624,2]
[322653746,1713181841304,-151.0,0.00034624,2]
[322653747,1713181841314,-195.196574,0.00034624,2]
[322653748,1713181841323,-195.196574,0.00034624,2]
[322653749,1713181841333,-744.0986567,0.000347,2]
[322653750,1713181841343,-638.14208789,0.00034768,2]
[322653751,1713181841357,-203.0300069,0.00034795,2]
[322653752,1713181841366,-153.0,0.00034795,2]
[322653753,1713181841374,-153.0,0.00034795,2]
[322653754,1713181841383,-153.0,0.00034795,2]
[322653755,1713181841392,-4476.80847042,0.000348,14]
[322653756,1713181841405,-151.0,0.000348,2]
[322653757,1713181841414,-151.0,0.000348,2]
[322653758,1713181841423,-151.0,0.000348,2]
[322653759,1713181841432,-151.0,0.000348,2]
[322653760,1713181841442,-151.0,0.000348,2]
[322653761,1713181841451,-151.0,0.000348,2]
[322653762,1713181841461,-763.3448,0.000348,2]
[322653763,1713181841470,-763.3448,0.000348,2]
[322653764,1713181841480,-151.0,0.000348,2]
[322653765,1713181841490,-318.580618,0.000348,2]
[322653766,1713181841500,-151.0,0.000348,2]
[322653767,1713181841510,-318.580618,0.000348,2]
[322653768,1713181841520,-150.81901718,0.00034803,2]
[322653769,1713181841530,-3447.39111661,0.00034899,2]
[322653770,1713181841540,-620.00366866,0.00034918,2]
[322653771,1713181841549,-205.0,0.0003498,9]
[322653772,1713181841559,-160.67365099,0.00034999,10]
[322653773,1713181841569,-5913.23,0.00034999,2]
[322653774,1713181841579,-5913.23,0.00034999,2]
[322653775,1713181841589,-5913.23,0.00034999,2]
[322653776,1713181841601,-5913.23,0.00034999,2]
[322653777,1713181841611,-5913.23,0.00034999,2]
[322653778,1713181841621,-5913.23,0.00034999,2]
[322653779,1713181841633,-5913.23,0.00034999,2]
[322653780,1713181841643,-5913.23,0.00034999,2]
[322653781,1713181841653,-5913.23,0.00034999,2]
[322653782,1713181841664,-5913.23,0.00034999,2]
[322653783,1713181841674,-151.0,0.00034999,2]
[322653784,1713181841683,-151.0,0.00034999,2]
[322653785,1713181841694,-151.0,0.00034999,2]
[322653786,1713181841703,-151.0,0.00034999,2]
[322653787,1713181841714,-151.0,0.00034999,2]
[322653788,1713181841724,-763.3448,0.00034999,2]
[322653789,1713181841735,-151.0,0.00034999,2]
[322653790,1713181841745,-151.0,0.00034999,2]
[322653791,1713181841755,-763.3448,0.00034999,2]
[322653792,1713181841765,-151.0,0.00034999,2]
[322653793,1713181841775,-151.0,0.00034999,2]
[322653794,1713181841785,-195.196574,0.00034999,2]
[322653795,1713181841795,-195.196574,0.00034999,2]
[322653796,1713181841805,-195.196574,0.00034999,2]
[322653797,1713181841816,-195.196574,0.00034999,2]
[322653798,1713181841826,-151.0,0.00034999,2]
[322653799,1713181841837,-2797.948285,0.00034999,2]
[322653800,1713181841848,-2797.948285,0.00034999,2]
[322653801,1713181841859,-2797.948285,0.00034999,2]
[322653802,1713181841869,-2797.948285,0.00034999,2]
[322653803,1713181841880,-151.0,0.00034999,2]
[322653804,1713181841889,-151.0,0.00034999,2]
[322653805,1713181841899,-151.0,0.00034999,2]
[322653806,1713181841910,-151.0,0.00034999,2]
[322653807,1713181841920,-318.580618,0.00034999,2]
[322653808,1713181841930,-151.0,0.00034999,2]
[322653809,1713181841940,-318.580618,0.00034999,2]
[322653810,1713181841952,-151.0,0.00034999,2]
[322653811,1713181841963,-151.0,0.00034999,2]
[322653812,1713181841972,-151.0,0.00034999,2]
[322653813,1713181841982,-151.0,0.00034999,2]
[322653814,1713181841992,-371.672002,0.00034999,2]
[322653815,1713181842002,-371.672002,0.00034999,2]
[322653816,1713181842014,-371.672002,0.00034999,2]
[322653817,1713181842023,-371.672002,0.00034999,2]
[322653818,1713181842033,-151.0,0.00034999,2]
[322653819,1713181842045,-151.0,0.00034999,2]
[322653820,1713181842055,-426.432367,0.00034999,2]
[322653821,1713181842065,-596.97026302,0.00035,2]
[322653822,1713181842074,-6869.95989293,0.00035,4]
[322653823,1713181842083,-154.81422293,0.00035,4]
[322653824,1713181842092,-10036.0,0.00035,30]
[322653825,1713181842105,-12026.06040909,0.00035,7]
[322653826,1713181842114,-12729.13421738,0.00035,4]
[322653827,1713181842125,-630450.88214056,0.00035,30]
[322653828,1713181842136,-151.0,0.00035,2]
[322653829,1713181842147,-151.0,0.00035,2]
[322653830,1713181842157,-151.0,0.00035,2]
[322653831,1713181842167,-151.0,0.00035,2]
[322653832,1713181842176,-272.816358,0.00035,2]
[322653833,1713181842186,-151.0,0.00035,2]
[322653834,1713181842196,-151.0,0.00035,2]
[322653835,1713181842206,-151.0,0.00035,2]
[322653836,1713181842217,-763.3448,0.00035,2]
[322653837,1713181842227,-763.3448,0.00035,2]
[322653838,1713181842236,-763.3448,0.00035,2]
[322653839,1713181842246,-151.0,0.00035,2]
[322653840,1713181842256,-763.3448,0.00035,2]
[322653841,1713181842267,-151.0,0.00035,2]
[322653842,1713181842277,-763.3448,0.00035,2]
[322653843,1713181842287,-763.3448,0.00035,2]
[322653844,1713181842298,-270.698346,0.00035,2]
[322653845,1713181842307,-195.196574,0.00035,2]
[322653846,1713181842318,-195.196574,0.00035,2]
[322653847,1713181842328,-195.196574,0.00035,2]
[322653848,1713181842338,-195.196574,0.00035,2]
[322653849,1713181842350,-2797.948285,0.00035,2]
[322653850,1713181842359,-2797.948285,0.00035,2]
[322653851,1713181842369,-2797.948285,0.00035,2]
[322653852,1713181842379,-2797.948285,0.00035,2]
[322653853,1713181842389,-151.0,0.00035,2]
[322653854,1713181842399,-151.0,0.00035,2]
[322653855,1713181842410,-151.0,0.00035,2]
[322653856,1713181842420,-151.0,0.00035,2]
[322653857,1713181842545,-318.580618,0.00035,2]
[322653858,1713181842556,-318.580618,0.00035,2]
[322653859,1713181842567,-153.146144,0.00035,2]
[322653860,1713181842577,-318.580618,0.00035,2]
[322653861,1713181842588,-318.580618,0.00035,2]
[322653862,1713181842601,-151.0,0.00035,2]
[322653863,1713181842611,-151.0,0.00035,2]
[322653864,1713181842622,-151.0,0.00035,2]
[322653865,1713181842632,-151.0,0.00035,2]
[322653866,1713181842641,-371.672002,0.00035,2]
[322653867,1713181842651,-371.672002,0.00035,2]
[322653868,1713181842661,-371.672002,0.00035,2]
[322653869,1713181842671,-371.672002,0.00035,2]
[322653870,1713181842681,-151.0,0.00035,2]
[322653871,1713181842691,-151.0,0.00035,2]
[322653872,1713181842701,-301.63803436,0.00035388,4]
[322653873,1713181842711,-154.0,0.00035441,2]
[322653874,1713181842720,-10000.0,0.000355,20]
[322653875,1713181842731,-2797.948285,0.000355,2]
[322653876,1713181842741,-2797.948285,0.000355,2]
[322653877,1713181842750,-151.0,0.000355,2]
[322653878,1713181842761,-216.589495,0.000355,2]
[322653879,1713181842772,-151.0,0.000355,2]
[322653880,1713181842782,-151.0,0.000355,2]
[322653881,1713181842792,-371.672002,0.000355,2]
[322653882,1713181842801,-371.672002,0.000355,2]
[322653883,1713181842810,-151.0,0.000355,2]
[322653884,1713181842819,-3447.39111661,0.00035576,2]
[322653885,1713181842827,-292.75121,0.00035608,2]
[322653886,1713181842837,-763.3448,0.00035608,2]
[322653887,1713181842845,-151.0,0.00035608,2]
[322653888,1713181842857,-763.3448,0.00035608,2]
[322653889,1713181842866,-195.196574,0.00035608,2]
[322653890,1713181842876,-195.196574,0.00035608,2]
[322653891,1713181842885,-318.580618,0.00035612,2]
[322653892,1713181842894,-318.580618,0.00035612,2]
[322653893,1713181842903,-1242.51023388,0.00035612,4]
[322653894,1713181842912,-3143.554096,0.00035616,120]
[322653895,1713181842922,-1000.0,0.000358,3]
[322653896,1713181842932,-1000.0,0.000358,4]
[322653897,1713181842941,-1000.0,0.000358,5]
[322653898,1713181842950,-1000.0,0.000358,6]
[322653899,1713181842960,-2000.0,0.000358,7]
[322653900,1713181842970,-2000.0,0.000358,8]
[322653901,1713181842980,-2000.0,0.000358,9]
[322653902,1713181842989,-2000.0,0.000358,10]
[322653903,1713181842999,-151.0,0.000358,2]
[322653904,1713181843008,-603.27606872,0.00035983,7]
[322653905,1713181843017,-155.10286771,0.00035997,4]
[322653907,1713181843027,-155.17172241,0.00035997,4]
[322653908,1713181843035,-156.28220194,0.00035997,4]
[322653910,1713181843045,-163.07692582,0.00035997,4]
[322653912,1713181843054,-155.18134651,0.00035997,4]
[322653914,1713181843063,-846.58893776,0.00035997,35]
[322653916,1713181843072,-172.0280772,0.00035997,2]
[322653918,1713181843082,-155.05555193,0.00035997,4]
[322653921,1713181843091,-155.15549472,0.00035997,4]
[322653924,1713181843102,-265.92071213,0.00035997,7]
[322653928,1713181843111,-154.86128635,0.00035997,4]
[322653931,1713181843120,-224.6175572,0.00035998,4]
[322653933,1713181843130,-155.38446432,0.00035998,4]
[322653934,1713181843139,-243.33001639,0.00035998,4]
[322653936,1713181843148,-181.71201961,0.00035998,4]
[322653937,1713181843157,-209.241626,0.00035998,4]
[322653938,1713181843167,-181.41719228,0.00035998,5]
[322653939,1713181843176,-240.07595404,0.00035998,3]
[322653940,1713181843186,-300.65867133,0.00035998,4]
[322653941,1713181843195,-393.47,0.00036,120]
[322653942,1713181843205,-191.0,0.00036,2]
[322653943,1713181843214,-191.0,0.00036,2]
[322653944,1713181843223,-1008.2,0.000362,12]
[322653945,1713181843233,-3447.39111661,0.00036254,2]
[322653946,1713181843242,-10000.0,0.000365,20]
[322653947,1713181843251,-763.3448,0.000365,2]
[322653948,1713181843261,-151.0,0.000365,2]
[322653949,1713181843270,-763.3448,0.000365,2]
[322653950,1713181843279,-195.196574,0.000365,2]
[322653951,1713181843288,-195.196574,0.000365,2]
[322653952,1713181843298,-2797.948285,0.000365,2]
[322653953,1713181843307,-2797.948285,0.000365,2]
[322653954,1713181843316,-151.0,0.000365,2]
[322653955,1713181843325,-318.580618,0.000365,2]
[322653956,1713181843334,-318.580618,0.000365,2]
[322653957,1713181843344,-251.087682,0.000365,2]
[322653959,1713181843355,-275.669414,0.000365,2]
[322653961,1713181843363,-371.672002,0.000365,2]
[322653963,1713181843373,-371.672008,0.000365,2]
[322653964,1713181843382,-151.0,0.000365,2]
[322653965,1713181843392,-620.90710439,0.00036506,2]
[322653966,1713181843403,-151.0,0.00036559,2]
[322653968,1713181843415,-8831.42689856,0.00036559,5]
[322653969,1713181843426,-166.79376748,0.00036588,4]
[322653970,1713181843435,-300.0240331,0.00036593,4]
[322653971,1713181843445,-254.93253828,0.00036598,4]
[322653972,1713181843455,-59623.39062963,0.000366,2]
[322653973,1713181843464,-763.3448,0.000366,2]
[322653974,1713181843474,-151.0,0.000366,2]
[322653975,1713181843484,-763.34481,0.000366,2]
[322653976,1713181843494,-195.196574,0.000366,2]
[322653977,1713181843504,-195.196581,0.000366,2]
[322653978,1713181843514,-2797.948285,0.000366,2]
[322653979,1713181843523,-2797.948289,0.000366,2]
[322653980,1713181843533,-151.0,0.000366,2]
[322653981,1713181843542,-318.580618,0.000366,2]
[322653982,1713181843552,-318.580618,0.000366,2]
[322653983,1713181843564,-163.585749,0.00036771,2]
[322653984,1713181843575,-62509.58812662,0.00036789,2]
[322653986,1713181843586,-318.580618,0.00036789,2]
[322653987,1713181843597,-318.580628,0.00036789,2]
[322653988,1713181843611,-1000.0,0.000368,3]
[322653989,1713181843621,-2258.0,0.00036822,2]
[322653990,1713181843631,-1206.55213744,0.00036894,30]
[322653991,1713181843641,-306.0,0.00036986,2]
[322653992,1713181843650,-2046.20344708,0.00037,2]
[322653993,1713181843659,-2498.04902184,0.00037,2]
[322653994,1713181843669,-984.00405616,0.0003717,8]
[322653995,1713181843679,-10000.0,0.000375,25]
[322653996,1713181843688,-180.0,0.000375,60]
[322653997,1713181843697,-3000.0,0.000375,14]
[322653999,1713181843706,-2157.89024935,0.000375,30]
[322654000,1713181843715,-3000.0,0.000375,4]
[322654001,1713181843725,-3000.0,0.0003751,14]
[322654002,1713181843734,-241.0,0.00037514,2]
[322654003,1713181843743,-3000.0,0.0003752,14]
[322654004,1713181843752,-3000.0,0.0003753,14]
[322654005,1713181843761,-3000.0,0.0003754,14]
[322654006,1713181843770,-3000.0,0.0003755,14]
[322654007,1713181843779,-3000.0,0.0003756,14]
[322654008,1713181843788,-3000.0,0.0003757,14]
[322654009,1713181843798,-3000.0,0.0003758,14]
[322654010,1713181843807,-155.64900908,0.00037586,4]
[322654011,1713181843816,-3000.0,0.0003759,14]
[322654012,1713181843825,-3000.0,0.000376,14]
[322654013,1713181843835,-3000.0,0.0003761,14]
[322654014,1713181843845,-3000.0,0.0003762,14]
[322654015,1713181843857,-3000.0,0.0003763,14]
[322654016,1713181843866,-3000.0,0.0003764,14]
[322654017,1713181843875,-3000.0,0.0003765,15]
[322654018,1713181843883,-154.0,0.00037656,2]
[322654019,1713181843893,-3000.0,0.0003766,15]
[322654020,1713181843903,-3000.0,0.0003767,15]
[322654021,1713181843912,-3000.0,0.0003768,15]
[322654022,1713181843922,-3000.0,0.0003769,15]
[322654023,1713181843930,-3000.0,0.000377,15]
[322654024,1713181843940,-3000.0,0.0003771,15]
[322654025,1713181843948,-3000.0,0.0003772,15]
[322654026,1713181843958,-3000.0,0.0003773,15]
[322654027,1713181843967,-3000.0,0.0003774,15]
[322654028,1713181843976,-3000.0,0.0003775,15]
[322654029,1713181843986,-3000.0,0.0003776,15]
[322654030,1713181843995,-3000.0,0.0003777,15]
[322654031,1713181844004,-3000.0,0.0003778,15]
[322654032,1713181844013,-3000.0,0.0003779,15]
[322654033,1713181844022,-3000.0,0.000378,15]
[322654034,1713181844031,-4444.69,0.00037808,10]
[322654035,1713181844041,-4444.69,0.00037808,10]
[322654036,1713181844051,-4444.69,0.00037808,10]
[322654037,1713181844060,-4444.69,0.00037808,10]
[322654038,1713181844070,-4444.69,0.00037808,10]
[322654039,1713181844079,-4444.69,0.00037808,10]
[322654040,1713181844088,-4444.69,0.00037808,10]
[322654041,1713181844097,-4444.69,0.00037808,10]
[322654042,1713181844111,-4444.69,0.00037808,10]
[322654043,1713181844121,-4444.69,0.00037808,10]
[322654044,1713181844130,-4444.69,0.00037808,10]
[322654045,1713181844140,-4444.69,0.00037808,10]
[322654046,1713181844150,-4444.69,0.00037808,10]
[322654047,1713181844160,-4444.69,0.00037808,10]
[322654048,1713181844169,-4444.69,0.00037808,10]
[322654049,1713181844179,-4444.69,0.00037808,10]
[322654050,1713181844188,-4444.69,0.00037808,10]
[322654051,1713181844198,-4444.69,0.00037808,10]
[322654052,1713181844207,-4444.69,0.00037808,10]
[322654053,1713181844216,-4444.69,0.00037808,10]
[322654054,1713181844225,-4444.69,0.00037808,10]
[322654055,1713181844235,-4444.69,0.00037808,10]
[322654056,1713181844244,-4444.69,0.00037808,10]
[322654057,1713181844253,-4444.79343138,0.00037808,10]
[322654058,1713181844262,-3000.0,0.0003781,15]
[322654059,1713181844271,-3000.0,0.0003782,15]
[322654060,1713181844281,-3000.0,0.0003783,15]
[322654061,1713181844290,-3000.0,0.0003784,15]
[322654062,1713181844300,-36884.37334125,0.00037849,2]
[322654063,1713181844309,-3000.0,0.0003785,15]
[322654064,1713181844318,-3000.0,0.0003786,15]
[322654065,1713181844328,-3000.0,0.0003787,16]
[322654066,1713181844337,-3000.0,0.0003788,16]
[322654067,1713181844347,-3000.0,0.0003789,16]
[322654068,1713181844358,-3000.0,0.000379,16]
[322654069,1713181844368,-3000.0,0.0003791,16]
[322654070,1713181844378,-3000.0,0.0003792,16]
[322654071,1713181844389,-3000.0,0.0003793,16]
[322654072,1713181844400,-9394.86542554,0.00037939,7]
[322654073,1713181844411,-3000.0,0.0003794,16]
[322654074,1713181844425,-3000.0,0.0003795,16]
[322654075,1713181844435,-14277.37993319,0.00037956,4]
[322654076,1713181844446,-4577.92553492,0.00037956,4]
[322654077,1713181844455,-3000.0,0.0003796,16]
[322654078,1713181844465,-212.0,0.0003797,35]
[322654079,1713181844475,-3000.0,0.0003797,16]
[322654080,1713181844484,-154.0,0.00037973,2]
[322654081,1713181844495,-212.0,0.0003798,35]
[322654082,1713181844506,-3000.0,0.0003798,16]
[322654083,1713181844516,-212.0,0.0003799,35]
[322654084,1713181844526,-3000.0,0.0003799,16]
[322654085,1713181844536,-23256.67608043,0.00038,2]
[322654086,1713181844858,-1.338e-05,0.00038,2]
[322654087,1713181845097,-500.0,0.00030191,2]
[322654088,1713181845109,-500.0,0.00030246,2]
[322654089,1713181845119,-426.432367,0.00035,2]
[322654090,1713181845128,-3447.39111661,0.00036931,2]
[322654091,1713181845138,-8300.17651639,0.00038,2]
[322654099,1713181846833,-161.72622202,0.00027999,2]
[322654100,1713181846843,-426.432367,0.00028,2]
[322654101,1713181846854,-166.666666,0.00028021,2]
[322654102,1713181846863,-166.666666,0.00028785,2]
[322654103,1713181846873,-166.666666,0.00029549,2]
[322654104,1713181846883,-426.432367,0.00029987,2]
[322654105,1713181846892,-500.0,0.00030301,2]
[322654106,1713181846904,-166.666666,0.00030313,2]
[322654107,1713181846913,-500.0,0.00030356,2]
[322654108,1713181846923,-500.0,0.0003041,2]
[322654109,1713181846932,-500.0,0.00030465,2]
[322654110,1713181846942,-500.0,0.0003052,2]
[322654111,1713181846952,-500.0,0.00030575,2]
[322654112,1713181846962,-500.0,0.0003063,2]
[322654113,1713181846972,-500.0,0.00030684,2]
[322654114,1713181846983,-500.0,0.00030739,2]
[322654115,1713181846993,-500.0,0.00030794,2]
[322654116,1713181847004,-500.0,0.00030849,2]
[322654117,1713181847014,-500.0,0.00030904,2]
[322654118,1713181847024,-500.0,0.00030958,2]
[322654119,1713181847034,-166.666666,0.00031077,2]
[322654120,1713181847044,-426.432367,0.000318,2]
[322654121,1713181847053,-166.666666,0.00031841,2]
[322654122,1713181847063,-209.971,0.00032543,2]
[322654123,1713181847072,-426.432367,0.00034617,2]
[322654124,1713181847082,-426.432367,0.00034999,2]
[322654125,1713181847092,-426.432367,0.00035,2]
[322654126,1713181847104,-426.432367,0.00035,2]
[322654127,1713181847113,-426.432367,0.00035,2]
[322654128,1713181847122,-426.432367,0.00035612,2]
[322654129,1713181847131,-426.432367,0.00035612,2]
[322654130,1713181847142,-426.432367,0.00036506,2]
[322654131,1713181847151,-426.432367,0.00036506,2]
[322654132,1713181847161,-426.432367,0.000366,2]
[322654133,1713181847170,-426.432363,0.000366,2]
[322654134,1713181847179,-3447.39111661,0.00037608,2]
[322654135,1713181847189,-21126.38025665,0.00038,2]
[322654136,1713181847200,-6596.0,0.00038,120]
[322654137,1713181847210,-252.08101149,0.00038,7]
[322654138,1713181847220,-2447.0,0.00038,2]
[322654139,1713181847230,-87949.77335853,0.00038,30]
[322654153,1713182509494,10000.0,0.00025,10]
[322654154,1713182813545,766.7573657,0.00023917,5]
[322654155,1713182837521,766.7573657,0.00023917,5]
[322654157,1713182857522,766.7573657,0.00023917,5]
[322654158,1713182871735,523.34295151,0.00022874,4]
[322654159,1713182879553,766.7573657,0.00023917,5]
[322654160,1713182903567,388.9113906,0.00022123,5]
[322654241,1713183037797,-525.49067281,0.00022119,2]
[322654243,1713183037806,-154.82968734,0.00022119,2]
[322654245,1713183037815,-154.82968734,0.0002212,2]
[322654246,1713183037828,-158.76974363,0.00022121,2]
[322654248,1713183037836,-284.86615324,0.00022123,2]
[322654250,1713183037846,-154.82968734,0.00022123,2]
[322654251,1713183037855,-385.40257837,0.00022123,2]
[322654253,1713183037864,-152.346512,0.00022773,2]
[322654255,1713183037873,-381.12552943,0.00022778,2]
[322654256,1713183037883,-343.78066595,0.000229,2]
[322654258,1713183037892,-243.11397292,0.00023,2]
[322654260,1713183037902,-170.088932,0.00023645,2]
[322654261,1713183037911,-477.0832747,0.00023928,2]
[322654263,1713183037920,-300.0,0.00024582,2]
[322654265,1713183037928,-241.0,0.00024582,2]
[322654267,1713183037938,-72377.48324442,0.00024583,2]
[322654268,1713183037947,-24900.0,0.00024584,2]
[322654270,1713183037956,-380.0,0.00024658,2]
[322654272,1713183037965,-156.98200501,0.00025,2]
[322654273,1713183037973,-156.8169168,0.00025,2]
[322654275,1713183037982,-2736.84928298,0.00025,2]
[322654277,1713183037992,-250.0,0.00026575,2]
[322654278,1713183038001,-177.44474695,0.00026999,4]
[322654280,1713183038012,-154.82968734,0.00027,2]
[322654282,1713183038020,-420.0,0.0002704,2]
[322654284,1713183038029,-182.333852,0.00027397,2]
[322654285,1713183038039,-185.293456,0.00027397,2]
[322654287,1713183038048,-166.666666,0.00027397,2]
[322654289,1713183038056,-917.01919934,0.00027898,2]
[322654290,1713183038066,-343.78066595,0.000279,2]
[322654292,1713183038075,-163.8615962,0.00027996,2]
[322654294,1713183038084,-3785.71106338,0.00027998,2]
[322654296,1713183038093,-166.666666,0.00028038,2]
[322654298,1713183038102,-352.68039956,0.00028579,2]
[322654299,1713183038111,-2000.0,0.0002867,2]
[322654301,1713183038121,-166.666666,0.00028679,2]
[322654302,1713183038131,-300.0240331,0.00028767,2]
[322654304,1713183038139,-254.93253828,0.00028767,2]
[322654306,1713183038149,-155.38446432,0.00028767,2]
[322654308,1713183038157,-181.41719228,0.00028767,3]
[322654309,1713183038166,-265.92071213,0.00028767,7]
[322654311,1713183038175,-155.15549472,0.00028767,2]
[322654313,1713183038184,-154.86128635,0.00028767,2]
[322654315,1713183038193,-155.05555193,0.00028767,2]
[322654316,1713183038202,-300.65867133,0.00028767,2]
[322654318,1713183038210,-155.10286771,0.00028767,2]
[322654320,1713183038219,-163.07692582,0.00028767,2]
[322654322,1713183038228,-209.241626,0.00028767,2]
[322654324,1713183038237,-240.07595404,0.00028767,2]
[322654325,1713183038246,-155.17172241,0.00028767,2]
[322654327,1713183038257,-846.58893776,0.00028767,17]
[322654329,1713183038265,-243.33001639,0.00028767,2]
[322654331,1713183038274,-155.18134651,0.00028767,2]
[322654332,1713183038283,-172.0280772,0.00028767,2]
[322654334,1713183038292,-224.6175572,0.00028767,2]
[322654336,1713183038301,-52845.94508035,0.0002877,5]
[322654338,1713183038311,-181004.99280186,0.0002877,2]
[322654340,1713183038320,-152.346512,0.00029221,2]
[322654341,1713183038329,-166.666666,0.00029321,2]
[322654343,1713183038338,-587.0,0.00029744,2]
[322654345,1713183038348,-166.666666,0.00029962,2]
[322654347,1713183038356,-199.999999,0.0003,2]
[322654349,1713183038365,-154.82968734,0.0003,4]
[322654350,1713183038375,-186.77324729,0.0003,2]
[322654352,1713183038384,-193.0,0.0003,2]
[322654354,1713183038392,-166.666666,0.00030603,2]
[322654356,1713183038401,-187.082943,0.00030674,2]
[322654357,1713183038410,-352.68039956,0.00030787,2]
[322654359,1713183038419,-8831.42689856,0.00031,5]
[322654361,1713183038428,-823.0,0.00032718,2]
[322654363,1713183038437,-343.78066595,0.000329,2]
[322654364,1713183038446,-352.68039956,0.00032995,2]
[322654366,1713183038456,-185.293456,0.00033165,2]
[322654368,1713183038465,-150.047,0.00033344,2]
[322654370,1713183038476,-218.8,0.00033344,2]
[322654372,1713183038485,-465.39337493,0.00034,4]
[322654373,1713183038494,-1242.51023388,0.000342,4]
[322654375,1713183038502,-1242.51023388,0.000342,4]
[322654377,1713183038514,-10302.76,0.000345,10]
[322654379,1713183038522,-25372.304699,0.00034555,10]
[322654381,1713183038531,-4444.69,0.00034794,7]
[322654382,1713183038540,-4444.69,0.00034794,7]
[322654384,1713183038549,-4444.69,0.00034794,7]
[322654386,1713183038559,-1670.86493937,0.00034998,4]
[322654388,1713183038568,-6869.95989293,0.00035,4]
[322654389,1713183038577,-9933.29817149,0.00035,30]
[322654391,1713183038585,-14646.2602568,0.00035,7]
[322654393,1713183038595,-501.56010256,0.00035,120]
[322654395,1713183038604,-154.82968734,0.00035,4]
[322654396,1713183038613,-596.97026302,0.00035,2]
[322654398,1713183038622,-1352.378375,0.00035,7]
[322654400,1713183038631,-352.68039956,0.00035202,2]
[322654402,1713183038640,-499.999,0.00035487,2]
[322654403,1713183038649,-10000.0,0.000355,15]
[322654405,1713183038658,-400.75551141,0.00035616,2]
[322654407,1713183038667,-2357.665572,0.00035616,120]
[322654409,1713183038677,-154.82968734,0.0003589,2]
[322654410,1713183038687,-1152.0,0.0003599,2]
[322654412,1713183038696,-20027.53612953,0.00036,30]
[322654414,1713183038706,-150.0,0.00036344,2]